[Event "November 21 Late 2023"]
[Site "https://www.chess.com"]
[Date "2023.11.21"]
[Round "7"]
[White "Nita, Lucian"]
[Black "Khater, Sherif"]
[Result "0-1"]
[Board "77"]
[TimeControl "180+1"]
[WhiteFideId "1206923"]
[BlackFideId "2034280"]
[WhiteElo "2066"]
[BlackElo "2515"]
[WhiteTeam "ROU"]
[BlackTeam "USA"]
[WhiteClock "0:00:19"]
[BlackClock "0:00:26"]

1. e4 {[%clk 0:03:00]}  a6 {[%clk 0:03:00]} 2. d3 {[%clk 0:03:00]}  c6 {[%clk 0:03:00]} 3. Nd2 {[%clk 0:03:01]}  d5 {[%clk 0:02:59]} 4. Ngf3 {[%clk 0:03:02]}  g6 {[%clk 0:02:58]} 5. g3 {[%clk 0:03:01]}  Bg7 {[%clk 0:02:58]} 6. Bg2 {[%clk 0:03:02]}  e5 {[%clk 0:02:58]} 7. O-O {[%clk 0:03:03]}  Ne7 {[%clk 0:02:58]} 8. Re1 {[%clk 0:03:03]}  d4 {[%clk 0:02:58]} 9. Nc4 {[%clk 0:03:00]}  f6 {[%clk 0:02:58]} 10. a4 {[%clk 0:03:00]}  O-O {[%clk 0:02:58]} 11. a5 {[%clk 0:02:59]}  Be6 {[%clk 0:02:54]} 12. Nb6 {[%clk 0:02:58]}  Ra7 {[%clk 0:02:54]} 13. b3 {[%clk 0:02:53]}  Nd7 {[%clk 0:02:54]} 14. Nc4 {[%clk 0:02:53]}  c5 {[%clk 0:02:52]} 15. Ba3 {[%clk 0:02:49]}  Nc6 {[%clk 0:02:52]} 16. Qd2 {[%clk 0:02:46]}  Qe7 {[%clk 0:02:52]} 17. h4 {[%clk 0:02:43]}  Raa8 {[%clk 0:02:50]} 18. Kh2 {[%clk 0:02:42]}  Nb4 {[%clk 0:02:50]} 19. Bxb4 {[%clk 0:02:40]}  cxb4 {[%clk 0:02:50]} 20. Bh3 {[%clk 0:02:41]}  Bxh3 {[%clk 0:02:46]} 21. Kxh3 {[%clk 0:02:40]}  Rac8 {[%clk 0:02:47]} 22. Ra4 {[%clk 0:02:39]}  f5 {[%clk 0:02:37]} 23. exf5 {[%clk 0:02:34]}  Rxf5 {[%clk 0:02:36]} 24. Nxd4 {[%clk 0:02:32]}  Rf7 {[%clk 0:02:24]} 25. Nf3 {[%clk 0:02:29]}  Rxf3 {[%clk 0:02:22]} 26. Qxb4 {[%clk 0:02:28]}  Qe6+ {[%clk 0:02:15]} 27. Kg2 {[%clk 0:02:27]}  Rcf8 {[%clk 0:02:14]} 28. Re2 {[%clk 0:02:26]}  Qc6 {[%clk 0:02:11]} 29. Kg1 {[%clk 0:02:05]}  Nc5 {[%clk 0:02:06]} 30. Ra1 {[%clk 0:01:56]}  e4 {[%clk 0:02:04]} 31. Rd1 {[%clk 0:01:44]}  Bd4 {[%clk 0:01:55]} 32. Ne3 {[%clk 0:01:39]}  Bxe3 {[%clk 0:01:54]} 33. Qc4+ {[%clk 0:01:36]}  Kg7 {[%clk 0:01:46]} 34. Rxe3 {[%clk 0:01:33]}  Rxf2 {[%clk 0:01:40]} 35. d4 {[%clk 0:01:33]}  Nd7 {[%clk 0:01:04]} 36. Qxc6 {[%clk 0:01:30]}  bxc6 {[%clk 0:01:05]} 37. Rxe4 {[%clk 0:01:30]}  R2f6 {[%clk 0:00:57]} 38. Re7+ {[%clk 0:01:16]}  R8f7 {[%clk 0:00:56]} 39. Rde1 {[%clk 0:01:14]}  Rxe7 {[%clk 0:00:56]} 40. Rxe7+ {[%clk 0:01:14]}  Rf7 {[%clk 0:00:57]} 41. Re6 {[%clk 0:01:13]}  Nb8 {[%clk 0:00:49]} 42. Kg2 {[%clk 0:01:07]}  Rc7 {[%clk 0:00:46]} 43. Kf3 {[%clk 0:01:04]}  Kf7 {[%clk 0:00:46]} 44. Re4 {[%clk 0:00:55]}  Nd7 {[%clk 0:00:46]} 45. Ke3 {[%clk 0:00:52]}  Nf6 {[%clk 0:00:46]} 46. Rf4 {[%clk 0:00:52]}  Ke6 {[%clk 0:00:46]} 47. c4 {[%clk 0:00:51]}  Rb7 {[%clk 0:00:46]} 48. g4 {[%clk 0:00:45]}  Rxb3+ {[%clk 0:00:46]} 49. Kd2 {[%clk 0:00:46]}  Ra3 {[%clk 0:00:44]} 50. g5 {[%clk 0:00:45]}  Nh5 {[%clk 0:00:43]} 51. Re4+ {[%clk 0:00:45]}  Kd7 {[%clk 0:00:43]} 52. Re5 {[%clk 0:00:43]}  Rh3 {[%clk 0:00:41]} 53. Re4 {[%clk 0:00:39]}  Ng3 {[%clk 0:00:39]} 54. Rf4 {[%clk 0:00:33]}  Nf5 {[%clk 0:00:38]} 55. d5 {[%clk 0:00:20]}  cxd5 {[%clk 0:00:37]} 56. cxd5 {[%clk 0:00:21]}  Kd6 {[%clk 0:00:38]} 57. Rb4 {[%clk 0:00:20]}  Kxd5 {[%clk 0:00:36]} 58. Rb6 {[%clk 0:00:20]}  Rxh4 {[%clk 0:00:36]} 59. Rxa6 {[%clk 0:00:20]}  Ra4 {[%clk 0:00:33]} 60. Ra7 {[%clk 0:00:20]}  Ke5 {[%clk 0:00:33]} 61. Kc3 {[%clk 0:00:17]}  Kf4 {[%clk 0:00:30]} 62. Kb3 {[%clk 0:00:17]}  Ra1 {[%clk 0:00:29]} 63. Kb2 {[%clk 0:00:17]}  Re1 {[%clk 0:00:29]} 64. Rxh7 {[%clk 0:00:16]}  Kxg5 {[%clk 0:00:29]} 65. a6 {[%clk 0:00:17]}  Re8 {[%clk 0:00:29]} 66. a7 {[%clk 0:00:17]}  Ra8 {[%clk 0:00:28]} 67. Rb7 {[%clk 0:00:16]}  Kf6 {[%clk 0:00:28]} 68. Kc3 {[%clk 0:00:17]}  g5 {[%clk 0:00:27]} 69. Kd3 {[%clk 0:00:17]}  g4 {[%clk 0:00:27]} 70. Ke4 {[%clk 0:00:17]}  Nd6+ {[%clk 0:00:27]} 71. Kf4 {[%clk 0:00:18]}  Nxb7 {[%clk 0:00:26]} 72. Kxg4 {[%clk 0:00:19]} 0-1

[Event "November 21 Late 2023"]
[Site "https://www.chess.com"]
[Date "2023.11.21"]
[Round "7"]
[White "Garrido, Denis"]
[Black "Cristi_Coca"]
[Result "1-0"]
[Board "78"]
[TimeControl "180+1"]
[WhiteFideId "601217"]
[WhiteElo "2380"]
[BlackElo "2509"]
[WhiteTeam "FRA"]
[WhiteClock "0:00:56"]
[BlackClock "0:00:33"]

1. e4 {[%clk 0:02:55]}  c5 {[%clk 0:02:59]} 2. Nf3 {[%clk 0:02:55]}  e6 {[%clk 0:02:59]} 3. d4 {[%clk 0:02:55]}  cxd4 {[%clk 0:03:00]} 4. Bg5 {[%clk 0:02:55]}  Qa5+ {[%clk 0:02:56]} 5. c3 {[%clk 0:02:53]}  Nc6 {[%clk 0:02:51]} 6. Bd2 {[%clk 0:02:47]}  dxc3 {[%clk 0:02:45]} 7. Nxc3 {[%clk 0:02:48]}  Qb6 {[%clk 0:02:42]} 8. Bc4 {[%clk 0:02:46]}  a6 {[%clk 0:02:38]} 9. O-O {[%clk 0:02:45]}  Be7 {[%clk 0:02:37]} 10. e5 {[%clk 0:02:41]}  Qc7 {[%clk 0:02:33]} 11. Bf4 {[%clk 0:02:37]}  b5 {[%clk 0:02:33]} 12. Bb3 {[%clk 0:02:33]}  Bb7 {[%clk 0:02:33]} 13. Rc1 {[%clk 0:02:32]}  Rc8 {[%clk 0:02:13]} 14. Ne4 {[%clk 0:02:30]}  Qb8 {[%clk 0:02:08]} 15. Re1 {[%clk 0:02:27]}  Bb4 {[%clk 0:02:00]} 16. Nd6+ {[%clk 0:02:26]}  Bxd6 {[%clk 0:02:00]} 17. exd6 {[%clk 0:02:26]}  Nf6 {[%clk 0:02:00]} 18. Bg5 {[%clk 0:02:20]}  Na5 {[%clk 0:01:57]} 19. Bxf6 {[%clk 0:02:17]}  gxf6 {[%clk 0:01:58]} 20. Qd2 {[%clk 0:02:15]}  Rxc1 {[%clk 0:01:51]} 21. Rxc1 {[%clk 0:02:15]}  Nxb3 {[%clk 0:01:45]} 22. axb3 {[%clk 0:02:16]}  Bxf3 {[%clk 0:01:45]} 23. gxf3 {[%clk 0:02:15]}  O-O {[%clk 0:01:25]} 24. Qf4 {[%clk 0:02:01]}  Rc8 {[%clk 0:01:15]} 25. Rd1 {[%clk 0:01:43]}  Rc6 {[%clk 0:01:02]} 26. Kh1 {[%clk 0:01:12]}  Kf8 {[%clk 0:01:01]} 27. Qxf6 {[%clk 0:01:11]}  Rxd6 {[%clk 0:00:59]} 28. Qh8+ {[%clk 0:01:09]}  Ke7 {[%clk 0:00:58]} 29. Qxb8 {[%clk 0:01:10]}  Rxd1+ {[%clk 0:00:59]} 30. Kg2 {[%clk 0:01:10]}  Rd6 {[%clk 0:00:54]} 31. Qb7 {[%clk 0:01:08]}  e5 {[%clk 0:00:50]} 32. Qe4 {[%clk 0:01:08]}  Rg6+ {[%clk 0:00:48]} 33. Kf1 {[%clk 0:01:05]}  Ke6 {[%clk 0:00:47]} 34. f4 {[%clk 0:01:01]}  d5 {[%clk 0:00:35]} 35. Qxe5+ {[%clk 0:00:56]}  Kd7 {[%clk 0:00:33]} 1-0

[Event "November 21 Late 2023"]
[Site "https://www.chess.com"]
[Date "2023.11.21"]
[Round "7"]
[White "Bilan, Danila"]
[Black "Liu, Leonardo"]
[Result "1-0"]
[Board "83"]
[TimeControl "180+1"]
[WhiteFideId "24161918"]
[BlackFideId "30965780"]
[WhiteElo "2146"]
[BlackElo "2288"]
[WhiteTeam "RUS"]
[BlackTeam "USA"]
[WhiteClock "0:00:02"]
[BlackClock "0:00:11"]

1. d4 {[%clk 0:03:00]}  Nf6 {[%clk 0:02:55]} 2. Nf3 {[%clk 0:03:01]}  g6 {[%clk 0:02:56]} 3. Bg5 {[%clk 0:03:00]}  Bg7 {[%clk 0:02:56]} 4. c3 {[%clk 0:03:01]}  O-O {[%clk 0:02:56]} 5. Nbd2 {[%clk 0:03:01]}  d6 {[%clk 0:02:56]} 6. e4 {[%clk 0:02:58]}  Nbd7 {[%clk 0:02:55]} 7. Bc4 {[%clk 0:02:57]}  c5 {[%clk 0:02:54]} 8. dxc5 {[%clk 0:02:57]}  Nxc5 {[%clk 0:02:53]} 9. Qc2 {[%clk 0:02:50]}  h6 {[%clk 0:02:41]} 10. Bh4 {[%clk 0:02:44]}  g5 {[%clk 0:02:40]} 11. Bg3 {[%clk 0:02:44]}  a6 {[%clk 0:02:36]} 12. a4 {[%clk 0:02:31]}  Bd7 {[%clk 0:02:34]} 13. e5 {[%clk 0:02:23]}  Ne8 {[%clk 0:02:33]} 14. exd6 {[%clk 0:01:58]}  Nxd6 {[%clk 0:02:34]} 15. O-O {[%clk 0:01:42]}  Bf5 {[%clk 0:02:32]} 16. Qd1 {[%clk 0:01:18]}  Nxc4 {[%clk 0:02:28]} 17. Nxc4 {[%clk 0:01:18]}  Bd3 {[%clk 0:02:29]} 18. Ne3 {[%clk 0:01:06]}  Bxf1 {[%clk 0:02:24]} 19. Qxf1 {[%clk 0:01:07]}  Ne4 {[%clk 0:02:23]} 20. Qc4 {[%clk 0:00:53]}  Nxg3 {[%clk 0:02:22]} 21. hxg3 {[%clk 0:00:54]}  e6 {[%clk 0:02:15]} 22. Rd1 {[%clk 0:00:47]}  Qe7 {[%clk 0:02:10]} 23. Qg4 {[%clk 0:00:44]}  Rfd8 {[%clk 0:02:08]} 24. Re1 {[%clk 0:00:44]}  Qd7 {[%clk 0:02:01]} 25. Qh5 {[%clk 0:00:40]}  Qxa4 {[%clk 0:01:57]} 26. Ng4 {[%clk 0:00:37]}  Rd1 {[%clk 0:01:14]} 27. Rxd1 {[%clk 0:00:37]}  Qxd1+ {[%clk 0:01:12]} 28. Kh2 {[%clk 0:00:38]}  Qd3 {[%clk 0:00:49]} 29. Nge5 {[%clk 0:00:09]}  Bxe5 {[%clk 0:00:44]} 30. Nxe5 {[%clk 0:00:08]}  Qh7 {[%clk 0:00:44]} 31. Qf3 {[%clk 0:00:04]}  Rb8 {[%clk 0:00:39]} 32. Nd7 {[%clk 0:00:04]}  Qc2 {[%clk 0:00:24]} 33. Nxb8 {[%clk 0:00:02]}  Qxb2 {[%clk 0:00:25]} 34. Nd7 {[%clk 0:00:02]}  a5 {[%clk 0:00:24]} 35. Ne5 {[%clk 0:00:02]}  f5 {[%clk 0:00:23]} 36. Qd3 {[%clk 0:00:02]}  Qb6 {[%clk 0:00:21]} 37. Qd7 {[%clk 0:00:02]}  f4 {[%clk 0:00:10]} 38. Qf7+ {[%clk 0:00:02]}  Kh8 {[%clk 0:00:11]} 39. Ng6# {[%clk 0:00:02]} 1-0

[Event "November 21 Late 2023"]
[Site "https://www.chess.com"]
[Date "2023.11.21"]
[Round "7"]
[White "Ventura Bolet, Maxim"]
[Black "Saim, Mohamed Ilias"]
[Result "1-0"]
[Board "85"]
[TimeControl "180+1"]
[WhiteFideId "22238824"]
[BlackFideId "7900465"]
[WhiteElo "2227"]
[BlackElo "2063"]
[WhiteTeam "ESP"]
[BlackTeam "ALG"]
[WhiteClock "0:02:09"]
[BlackClock "0:01:07"]

1. Nf3 {[%clk 0:03:00]}  d5 {[%clk 0:02:56]} 2. g3 {[%clk 0:02:58]}  Nf6 {[%clk 0:02:55]} 3. Bg2 {[%clk 0:02:58]}  e6 {[%clk 0:02:55]} 4. O-O {[%clk 0:02:57]}  c6 {[%clk 0:02:55]} 5. d3 {[%clk 0:02:46]}  Be7 {[%clk 0:02:53]} 6. Nbd2 {[%clk 0:02:46]}  O-O {[%clk 0:02:54]} 7. e4 {[%clk 0:02:45]}  b5 {[%clk 0:02:41]} 8. e5 {[%clk 0:02:43]}  Nfd7 {[%clk 0:02:39]} 9. Re1 {[%clk 0:02:44]}  Qc7 {[%clk 0:02:38]} 10. Nf1 {[%clk 0:02:42]}  c5 {[%clk 0:02:33]} 11. h4 {[%clk 0:02:41]}  Nc6 {[%clk 0:02:33]} 12. Bf4 {[%clk 0:02:39]}  a5 {[%clk 0:02:30]} 13. Ne3 {[%clk 0:02:38]}  Qb6 {[%clk 0:02:24]} 14. h5 {[%clk 0:02:26]}  h6 {[%clk 0:02:13]} 15. Ng4 {[%clk 0:02:24]}  Rd8 {[%clk 0:02:05]} 16. Qd2 {[%clk 0:02:19]}  Bf8 {[%clk 0:02:01]} 17. Nxh6+ {[%clk 0:02:15]}  gxh6 {[%clk 0:02:02]} 18. Bxh6 {[%clk 0:02:15]}  Be7 {[%clk 0:01:21]} 19. Qf4 {[%clk 0:02:10]}  Kh7 {[%clk 0:01:07]} 20. Qxf7+ {[%clk 0:02:09]}  Kxh6 {[%clk 0:01:07]} 21. Qg6# {[%clk 0:02:09]} 1-0

[Event "November 21 Late 2023"]
[Site "https://www.chess.com"]
[Date "2023.11.21"]
[Round "7"]
[White "Hansen, Sune Berg"]
[Black "Yushko, Olga"]
[Result "1-0"]
[Board "86"]
[TimeControl "180+1"]
[WhiteFideId "1400266"]
[BlackFideId "14114500"]
[WhiteElo "2691"]
[BlackElo "2028"]
[WhiteTeam "DEN"]
[BlackTeam "UKR"]
[WhiteClock "0:01:01"]
[BlackClock "0:01:15"]

1. e4 {[%clk 0:03:00]}  e6 {[%clk 0:02:59]} 2. d3 {[%clk 0:02:59]}  d5 {[%clk 0:02:59]} 3. Nd2 {[%clk 0:03:00]}  Nf6 {[%clk 0:02:59]} 4. Ngf3 {[%clk 0:03:00]}  c5 {[%clk 0:02:59]} 5. g3 {[%clk 0:03:00]}  Nc6 {[%clk 0:02:59]} 6. Bg2 {[%clk 0:03:00]}  Be7 {[%clk 0:02:59]} 7. O-O {[%clk 0:02:59]}  O-O {[%clk 0:03:00]} 8. a4 {[%clk 0:02:58]}  Qc7 {[%clk 0:02:57]} 9. Re1 {[%clk 0:02:58]}  Bd7 {[%clk 0:02:52]} 10. e5 {[%clk 0:02:57]}  Ng4 {[%clk 0:02:47]} 11. Qe2 {[%clk 0:02:55]}  f6 {[%clk 0:02:42]} 12. exf6 {[%clk 0:02:54]}  Bxf6 {[%clk 0:02:41]} 13. c3 {[%clk 0:02:52]}  Rae8 {[%clk 0:02:40]} 14. h3 {[%clk 0:02:51]}  Nh6 {[%clk 0:02:39]} 15. Nf1 {[%clk 0:02:49]}  e5 {[%clk 0:02:37]} 16. Bxh6 {[%clk 0:02:47]}  gxh6 {[%clk 0:02:36]} 17. Ne3 {[%clk 0:02:47]}  Ne7 {[%clk 0:02:30]} 18. Nh2 {[%clk 0:02:43]}  Bc6 {[%clk 0:02:26]} 19. Qh5 {[%clk 0:02:39]}  Bg7 {[%clk 0:02:24]} 20. Nhg4 {[%clk 0:02:37]}  Qd6 {[%clk 0:02:21]} 21. c4 {[%clk 0:02:34]}  d4 {[%clk 0:02:17]} 22. Nd5 {[%clk 0:02:25]}  Nxd5 {[%clk 0:02:13]} 23. Bxd5+ {[%clk 0:02:20]}  Bxd5 {[%clk 0:02:13]} 24. cxd5 {[%clk 0:02:21]}  Qg6 {[%clk 0:02:09]} 25. Qxg6 {[%clk 0:01:51]}  hxg6 {[%clk 0:02:08]} 26. Rac1 {[%clk 0:01:44]}  b6 {[%clk 0:02:08]} 27. b4 {[%clk 0:01:41]}  h5 {[%clk 0:02:05]} 28. Nh2 {[%clk 0:01:38]}  Rc8 {[%clk 0:02:03]} 29. bxc5 {[%clk 0:01:35]}  bxc5 {[%clk 0:02:02]} 30. Kg2 {[%clk 0:01:24]}  Rf7 {[%clk 0:01:58]} 31. Nf3 {[%clk 0:01:24]}  Re7 {[%clk 0:01:50]} 32. Nxd4 {[%clk 0:01:18]}  Rd7 {[%clk 0:01:47]} 33. Nc6 {[%clk 0:01:13]}  Re8 {[%clk 0:01:40]} 34. Rxc5 {[%clk 0:01:11]}  Kf7 {[%clk 0:01:35]} 35. Ra5 {[%clk 0:01:09]}  Red8 {[%clk 0:01:29]} 36. Nxd8+ {[%clk 0:01:07]}  Rxd8 {[%clk 0:01:27]} 37. Rxa7+ {[%clk 0:01:07]}  Kf6 {[%clk 0:01:28]} 38. Ra6+ {[%clk 0:01:06]}  Kf5 {[%clk 0:01:26]} 39. d6 {[%clk 0:01:02]}  Bf8 {[%clk 0:01:26]} 40. g4+ {[%clk 0:01:01]}  hxg4 {[%clk 0:01:25]} 41. hxg4+ {[%clk 0:01:02]}  Kxg4 {[%clk 0:01:22]} 42. Rxe5 {[%clk 0:01:01]}  Bxd6 {[%clk 0:01:15]} 43. Rd5 {[%clk 0:01:01]} 1-0

[Event "November 21 Late 2023"]
[Site "https://www.chess.com"]
[Date "2023.11.21"]
[Round "7"]
[White "Wu, Derek"]
[Black "Melikhov, Evgeny V."]
[Result "1-0"]
[Board "87"]
[TimeControl "180+1"]
[WhiteFideId "30914558"]
[BlackFideId "4122046"]
[WhiteElo "2211"]
[BlackElo "2165"]
[WhiteTeam "USA"]
[BlackTeam "GRE"]
[WhiteClock "0:00:29"]
[BlackClock "0:00:02"]

1. e4 {[%clk 0:03:00]}  e5 {[%clk 0:02:59]} 2. Nf3 {[%clk 0:03:01]}  Nc6 {[%clk 0:03:00]} 3. Bb5 {[%clk 0:03:01]}  a6 {[%clk 0:02:58]} 4. Ba4 {[%clk 0:03:01]}  Nf6 {[%clk 0:02:58]} 5. O-O {[%clk 0:03:02]}  Nxe4 {[%clk 0:02:58]} 6. d4 {[%clk 0:03:01]}  b5 {[%clk 0:02:58]} 7. Bb3 {[%clk 0:03:00]}  d5 {[%clk 0:02:59]} 8. dxe5 {[%clk 0:03:00]}  Be6 {[%clk 0:02:59]} 9. Qe2 {[%clk 0:03:00]}  Be7 {[%clk 0:02:56]} 10. Rd1 {[%clk 0:02:59]}  O-O {[%clk 0:02:56]} 11. c4 {[%clk 0:02:56]}  bxc4 {[%clk 0:02:56]} 12. Bxc4 {[%clk 0:02:56]}  Bc5 {[%clk 0:02:56]} 13. Be3 {[%clk 0:02:51]}  Bxe3 {[%clk 0:02:56]} 14. Qxe3 {[%clk 0:02:50]}  Qb8 {[%clk 0:02:55]} 15. Bb3 {[%clk 0:02:49]}  Na5 {[%clk 0:02:55]} 16. Nbd2 {[%clk 0:02:43]}  Qa7 {[%clk 0:02:52]} 17. Nxe4 {[%clk 0:02:13]}  Qxe3 {[%clk 0:02:47]} 18. fxe3 {[%clk 0:02:13]}  Nxb3 {[%clk 0:02:46]} 19. axb3 {[%clk 0:02:09]}  dxe4 {[%clk 0:02:46]} 20. Nd4 {[%clk 0:02:10]}  c5 {[%clk 0:02:41]} 21. Nxe6 {[%clk 0:02:07]}  fxe6 {[%clk 0:02:41]} 22. Rd6 {[%clk 0:02:07]}  Rab8 {[%clk 0:02:37]} 23. Ra3 {[%clk 0:02:03]}  c4 {[%clk 0:02:36]} 24. Rxe6 {[%clk 0:01:53]}  cxb3 {[%clk 0:02:30]} 25. Rexa6 {[%clk 0:01:52]}  Rbc8 {[%clk 0:02:26]} 26. h4 {[%clk 0:01:41]}  Rc2 {[%clk 0:02:08]} 27. e6 {[%clk 0:01:21]}  Rxb2 {[%clk 0:01:17]} 28. Ra8 {[%clk 0:01:17]}  Ra2 {[%clk 0:00:58]} 29. Rxa2 {[%clk 0:01:01]}  bxa2 {[%clk 0:00:57]} 30. Rxa2 {[%clk 0:01:02]}  Re8 {[%clk 0:00:54]} 31. Ra6 {[%clk 0:01:00]}  g6 {[%clk 0:00:51]} 32. Kf2 {[%clk 0:00:57]}  Kg7 {[%clk 0:00:50]} 33. Kg3 {[%clk 0:00:56]}  Kf6 {[%clk 0:00:45]} 34. Kf4 {[%clk 0:00:56]}  h6 {[%clk 0:00:41]} 35. Kxe4 {[%clk 0:00:53]}  g5 {[%clk 0:00:34]} 36. h5 {[%clk 0:00:47]}  Rb8 {[%clk 0:00:25]} 37. e7+ {[%clk 0:00:45]}  Kxe7 {[%clk 0:00:24]} 38. Rxh6 {[%clk 0:00:46]}  Rb4+ {[%clk 0:00:24]} 39. Kf5 {[%clk 0:00:43]}  g4 {[%clk 0:00:21]} 40. Rg6 {[%clk 0:00:39]}  Rb3 {[%clk 0:00:14]} 41. Rxg4 {[%clk 0:00:37]}  Kf7 {[%clk 0:00:12]} 42. Re4 {[%clk 0:00:33]}  Kg7 {[%clk 0:00:07]} 43. g4 {[%clk 0:00:32]}  Kh6 {[%clk 0:00:06]} 44. Re6+ {[%clk 0:00:31]}  Kg7 {[%clk 0:00:02]} 45. g5 {[%clk 0:00:29]} 1-0

[Event "November 21 Late 2023"]
[Site "https://www.chess.com"]
[Date "2023.11.21"]
[Round "7"]
[White "Deng, Henry"]
[Black "Gutkin, Ilya"]
[Result "1-0"]
[Board "88"]
[TimeControl "180+1"]
[WhiteFideId "30965454"]
[BlackFideId "16203470"]
[WhiteElo "2551"]
[BlackElo "2248"]
[WhiteTeam "USA"]
[BlackTeam "GER"]
[WhiteClock "0:01:00"]
[BlackClock "0:00:00"]

1. e4 {[%clk 0:03:00]}  e5 {[%clk 0:02:59]} 2. Nf3 {[%clk 0:03:00]}  Nc6 {[%clk 0:03:00]} 3. Bc4 {[%clk 0:02:59]}  Nf6 {[%clk 0:03:00]} 4. d3 {[%clk 0:02:59]}  Bc5 {[%clk 0:03:00]} 5. Nc3 {[%clk 0:02:58]}  h6 {[%clk 0:02:57]} 6. O-O {[%clk 0:02:55]}  O-O {[%clk 0:02:56]} 7. Be3 {[%clk 0:02:50]}  d6 {[%clk 0:02:56]} 8. Bxc5 {[%clk 0:02:48]}  dxc5 {[%clk 0:02:57]} 9. Nd5 {[%clk 0:02:43]}  Bg4 {[%clk 0:02:51]} 10. h3 {[%clk 0:02:41]}  Bxf3 {[%clk 0:02:48]} 11. Qxf3 {[%clk 0:02:40]}  Nd4 {[%clk 0:02:48]} 12. Qd1 {[%clk 0:02:40]}  c6 {[%clk 0:02:39]} 13. Nxf6+ {[%clk 0:02:35]}  Qxf6 {[%clk 0:02:39]} 14. c3 {[%clk 0:02:35]}  Ne6 {[%clk 0:02:38]} 15. a4 {[%clk 0:02:35]}  Rad8 {[%clk 0:02:20]} 16. Qe2 {[%clk 0:02:30]}  Nf4 {[%clk 0:02:07]} 17. Qf3 {[%clk 0:02:28]}  Qg5 {[%clk 0:02:04]} 18. Kh2 {[%clk 0:02:25]}  Rd6 {[%clk 0:01:59]} 19. g3 {[%clk 0:02:21]}  Ng6 {[%clk 0:01:55]} 20. Rad1 {[%clk 0:02:19]}  Rf6 {[%clk 0:01:43]} 21. Qe3 {[%clk 0:02:09]}  Qxe3 {[%clk 0:01:23]} 22. fxe3 {[%clk 0:02:08]}  Rxf1 {[%clk 0:01:19]} 23. Rxf1 {[%clk 0:02:05]}  Ne7 {[%clk 0:01:19]} 24. b4 {[%clk 0:01:53]}  cxb4 {[%clk 0:01:19]} 25. cxb4 {[%clk 0:01:54]}  Nc8 {[%clk 0:01:13]} 26. d4 {[%clk 0:01:33]}  Nd6 {[%clk 0:01:10]} 27. Bd3 {[%clk 0:01:32]}  Re8 {[%clk 0:01:08]} 28. Re1 {[%clk 0:01:25]}  f5 {[%clk 0:00:51]} 29. exf5 {[%clk 0:01:11]}  exd4 {[%clk 0:00:50]} 30. e4 {[%clk 0:01:09]}  Nf7 {[%clk 0:00:45]} 31. Bc4 {[%clk 0:01:07]}  Re5 {[%clk 0:00:24]} 32. Kg2 {[%clk 0:01:00]}  Kf8 {[%clk 0:00:22]} 33. Bxf7 {[%clk 0:01:00]}  Kxf7 {[%clk 0:00:23]} 34. Kf3 {[%clk 0:01:01]}  c5 {[%clk 0:00:08]} 35. bxc5 {[%clk 0:01:00]}  Rxc5 {[%clk 0:00:08]} 36. Rd1 {[%clk 0:01:00]}  Rc4 {[%clk 0:00:06]} 37. a5 {[%clk 0:01:00]}  Ra4 {[%clk 0:00:05]} 38. Rb1 {[%clk 0:01:00]}  Rxa5 {[%clk 0:00:03]} 39. Rxb7+ {[%clk 0:01:00]}  Kf8 {[%clk 0:00:00]} 40. Rd7 {[%clk 0:01:00]} 1-0

[Event "November 21 Late 2023"]
[Site "https://www.chess.com"]
[Date "2023.11.21"]
[Round "7"]
[White "Zakarian, David"]
[Black "RodokininEV"]
[Result "0-1"]
[Board "89"]
[TimeControl "180+1"]
[WhiteFideId "13301276"]
[WhiteElo "2286"]
[BlackElo "2508"]
[WhiteTeam "ARM"]
[WhiteClock "0:00:16"]
[BlackClock "0:01:36"]

1. d4 {[%clk 0:03:00]}  Nf6 {[%clk 0:02:58]} 2. c4 {[%clk 0:03:00]}  g6 {[%clk 0:02:58]} 3. h4 {[%clk 0:03:01]}  d5 {[%clk 0:02:57]} 4. cxd5 {[%clk 0:02:59]}  Nxd5 {[%clk 0:02:57]} 5. h5 {[%clk 0:03:00]}  Bg7 {[%clk 0:02:55]} 6. e4 {[%clk 0:02:55]}  Nb6 {[%clk 0:02:53]} 7. d5 {[%clk 0:02:50]}  O-O {[%clk 0:02:49]} 8. Nc3 {[%clk 0:02:47]}  c6 {[%clk 0:02:49]} 9. Be2 {[%clk 0:02:24]}  cxd5 {[%clk 0:02:42]} 10. exd5 {[%clk 0:02:24]}  N8d7 {[%clk 0:02:43]} 11. Bf3 {[%clk 0:02:08]}  Nf6 {[%clk 0:02:43]} 12. h6 {[%clk 0:02:04]}  Bh8 {[%clk 0:02:42]} 13. Bf4 {[%clk 0:02:02]}  Ne8 {[%clk 0:02:42]} 14. Nge2 {[%clk 0:02:01]}  Nd6 {[%clk 0:02:41]} 15. O-O {[%clk 0:01:53]}  Nbc4 {[%clk 0:02:41]} 16. b3 {[%clk 0:01:51]}  Ne5 {[%clk 0:02:40]} 17. Be4 {[%clk 0:01:39]}  f5 {[%clk 0:02:28]} 18. Bc2 {[%clk 0:01:35]}  Bf6 {[%clk 0:02:28]} 19. Qd2 {[%clk 0:01:32]}  Ndf7 {[%clk 0:02:24]} 20. Rad1 {[%clk 0:01:24]}  g5 {[%clk 0:02:21]} 21. Be3 {[%clk 0:01:23]}  f4 {[%clk 0:02:20]} 22. Bd4 {[%clk 0:01:23]}  Nxh6 {[%clk 0:02:17]} 23. Nxf4 {[%clk 0:01:19]}  gxf4 {[%clk 0:02:15]} 24. Qxf4 {[%clk 0:01:20]}  Nef7 {[%clk 0:02:09]} 25. Ne4 {[%clk 0:01:09]}  Bxd4 {[%clk 0:01:55]} 26. Rxd4 {[%clk 0:01:10]}  Nf5 {[%clk 0:01:55]} 27. Ng5 {[%clk 0:00:48]}  Nxd4 {[%clk 0:01:44]} 28. Bxh7+ {[%clk 0:00:45]}  Kg7 {[%clk 0:01:44]} 29. Bd3 {[%clk 0:00:32]}  Qd6 {[%clk 0:01:37]} 30. Qxd4+ {[%clk 0:00:31]}  Qf6 {[%clk 0:01:35]} 31. Qxf6+ {[%clk 0:00:30]}  exf6 {[%clk 0:01:36]} 32. Nf3 {[%clk 0:00:16]}  Ne5 {[%clk 0:01:36]} 0-1